bitfinex-derivatives/quotes_BTCF0:USTF0_20251207
["timestamp","ask_amount","ask_price","bid_price","bid_amount"]
[1765137571255,0.05799,91423.0,91422.0,0.0767873]
[1765137572459,0.0689268,91428.0,91427.0,0.05685]
[1765137572864,0.05799,91428.0,91427.0,0.05685]
[1765137573061,0.0001641,91429.0,91428.0,0.0677866]
[1765137573263,0.0001641,91429.0,91428.0,0.10715176]
[1765137573664,0.0001641,91429.0,91428.0,0.0677866]
[1765137575168,0.0001641,91429.0,91428.0,0.0737866]
[1765137575770,0.0001641,91429.0,91428.0,0.0777866]
[1765137576369,0.0001641,91429.0,91428.0,0.0787866]
[1765137577677,0.0689249,91443.0,91442.0,0.05685]
[1765137578876,0.0689249,91443.0,91442.0,0.06085]
[1765137579773,0.0699249,91443.0,91442.0,0.06085]
[1765137581975,0.0415549,91443.0,91442.0,0.06085]
[1765137582280,0.0694649,91443.0,91442.0,0.06085]
[1765137582670,0.05853,91443.0,91442.0,0.06085]
[1765137583376,0.001,91443.0,91442.0,0.06085]
[1765137583972,0.00027339,91446.0,91442.0,0.06085]
[1765137583973,0.00027339,91446.0,91445.0,0.05864]
[1765137584174,0.0559341,91452.0,91451.0,0.05864]
[1765137584574,0.0280241,91452.0,91451.0,0.0695739]
[1765137584780,0.0001641,91452.0,91451.0,0.0695739]
[1765137584972,0.0667026,91462.0,91461.0,0.05864]
[1765137586476,0.0697026,91462.0,91461.0,0.05864]
[1765137586877,0.0727026,91462.0,91461.0,0.05864]
[1765137587681,0.06177,91462.0,91461.0,0.05864]
[1765137591783,0.06177,91462.0,91460.0,0.0276728]
[1765137591784,0.02802401,91471.0,91470.0,0.05864]
[1765137591987,0.05593401,91471.0,91470.0,0.05864]
[1765137592882,0.00516401,91471.0,91470.0,0.05864]
[1765137593678,0.00216401,91471.0,91470.0,0.05864]
[1765137595692,0.0109304,91481.0,91480.0,0.05864]
[1765137595889,0.0667004,91481.0,91480.0,0.05864]
[1765137596782,0.0697004,91481.0,91480.0,0.05864]
[1765137596982,0.05577,91474.0,91473.0,0.0695712]
[1765137598285,0.002,91474.0,91473.0,0.0695712]
[1765137599181,0.002,91474.0,91473.0,0.0705712]
[1765137600786,0.05604327,91486.0,91485.0,0.0695698]
[1765137601383,0.00010765,91490.0,91489.0,0.0695694]
[1765137601384,0.05587765,91490.0,91489.0,0.0695694]
[1765137601690,0.05587765,91490.0,91473.0,0.05964]
[1765137601691,0.05577,91474.0,91473.0,0.05964]
[1765137601893,0.05577,91474.0,91473.0,0.0705713]
[1765137602091,0.0723,91484.0,91483.0,0.05864]
[1765137602392,0.05877,91486.0,91485.0,0.07538]
[1765137602591,0.003,91486.0,91485.0,0.07538]
[1765137602889,0.05738765,91490.0,91489.0,0.05796]
[1765137603083,0.00010765,91490.0,91489.0,0.05796]
[1765137603485,0.05711,91502.0,91501.0,0.0109279]
[1765137603690,0.0109273,91507.0,91501.0,0.0109279]
[1765137603691,0.0386173,91507.0,91506.0,0.05755]
[1765137603881,0.0680373,91507.0,91506.0,0.05755]
[1765137604196,0.01653,91515.0,91500.0,0.01788]
[1765137604197,0.05711,91515.0,91505.0,0.0163]
[1765137604489,0.05711,91515.0,91514.0,0.05755]
[1765137604490,0.07352,91515.0,91514.0,0.05755]
[1765137605198,0.0844462,91515.0,91514.0,0.05755]
[1765137605492,0.05711,91515.0,91514.0,0.05755]
[1765137605885,0.07352,91525.0,91524.0,0.05755]
[1765137606290,0.05711,91525.0,91524.0,0.05755]
[1765137608294,0.06011,91525.0,91524.0,0.05755]
[1765137608495,0.06411,91525.0,91524.0,0.05755]
[1765137608798,0.06411,91525.0,91524.0,0.07543]
[1765137609497,0.007,91525.0,91524.0,0.07543]
[1765137609687,0.007,91525.0,91524.0,0.05755]
[1765137609688,0.06411,91525.0,91524.0,0.05755]
[1765137609886,0.06411,91525.0,91524.0,0.02884]
[1765137610799,0.06111,91525.0,91524.0,0.02884]
[1765137611493,0.06111,91525.0,91515.0,0.07107761]
[1765137611494,0.05711,91516.0,91515.0,0.02884]
[1765137611795,0.05678,91504.0,91503.0,0.0696677]
[1765137612588,0.05678,91504.0,91503.0,0.05874]
[1765137612789,0.05678,91502.0,91501.0,0.05890401]
[1765137614197,0.05678,91502.0,91501.0,0.06190401]
[1765137614794,0.05678,91502.0,91501.0,0.07390401]
[1765137615301,0.0677071,91508.0,91507.0,0.05874]
[1765137615698,0.0677066,91513.0,91512.0,0.07504]
[1765137615996,0.02815,91513.0,91512.0,0.07504]
[1765137616395,0.0677053,91523.0,91512.0,0.0163]
[1765137616598,0.0677053,91523.0,91522.0,0.05874]
[1765137616798,0.05678,91513.0,91512.0,0.05874]
[1765137617304,0.05678,91513.0,91512.0,0.06074]
[1765137617498,0.0109264,91514.0,91513.0,0.05874]
[1765137617697,0.05678,91519.0,91518.0,0.07504]
[1765137618700,0.05678,91519.0,91518.0,0.05874]
[1765137619401,0.05678,91519.0,91518.0,0.06274]
[1765137620107,0.05678,91519.0,91518.0,0.07904]
[1765137620306,0.02815,91519.0,91518.0,0.08004]
[1765137620709,0.0852452,91524.0,91523.0,0.05874]
[1765137621905,0.0852452,91524.0,91523.0,0.002]
[1765137623134,0.0677078,91502.0,91501.0,0.03015401]
[1765137623300,0.0677078,91502.0,91501.0,0.00016401]
[1765137624609,0.0677078,91502.0,91501.0,0.01016401]
[1765137625610,0.0677078,91502.0,91501.0,0.01316401]
[1765137626399,0.05678,91475.0,91474.0,0.05874]
[1765137627001,0.05678,91467.0,91466.0,0.069672]
[1765137627809,0.05678,91467.0,91466.0,0.05874]
[1765137628313,0.02815,91473.0,91472.0,0.07504]
[1765137628514,0.00016368,91476.0,91475.0,0.05874]
[1765137630425,0.0677089,91493.0,91492.0,0.05874]
[1765137631419,0.0677089,91493.0,91492.0,0.06674]
[1765137632329,0.0677089,91493.0,91492.0,0.07074]
[1765137632629,0.0677089,91493.0,91492.0,0.012]
[1765137633130,0.0677099,91484.0,91483.0,0.00016391]
[1765137633522,0.0677119,91468.0,91467.0,0.02999]
[1765137634029,0.0677119,91468.0,91467.0,0.05874]
[1765137634030,0.05678,91468.0,91467.0,0.05874]
[1765137634532,0.02815,91468.0,91467.0,0.09104]
[1765137634724,0.0677109,91476.0,91475.0,0.05874]
[1765137636531,0.0677109,91476.0,91475.0,0.06574]
[1765137637027,0.00016391,91477.0,91476.0,0.05874]
[1765137637428,0.01754,91503.0,91475.0,0.013]
[1765137637429,0.0677087,91495.0,91494.0,0.05874]
[1765137637634,0.05678,91495.0,91494.0,0.05874]
[1765137638523,0.02815,91495.0,91494.0,0.05874]
[1765137638925,0.03215,91495.0,91494.0,0.05874]
[1765137639126,0.06078,91495.0,91494.0,0.003]
[1765137642930,0.0674397,91486.0,91485.0,0.00016391]
[1765137644025,0.0674397,91486.0,91485.0,0.00716391]
[1765137645435,0.0674397,91486.0,91485.0,0.06460391]
[1765137647131,0.02806,91486.0,91485.0,0.08089391]
[1765137647332,0.0389893,91490.0,91489.0,0.05744]
[1765137647634,0.0674393,91490.0,91489.0,0.05744]
[1765137648141,0.0389889,91494.0,91493.0,0.05744]
[1765137648535,0.0674389,91494.0,91493.0,0.05744]
[1765137648735,0.0109289,91494.0,91493.0,0.05744]
[1765137649139,0.0389889,91494.0,91493.0,0.05744]
[1765137649440,0.0674389,91494.0,91493.0,0.05744]
[1765137650139,0.0674389,91494.0,91493.0,0.02787]
[1765137650447,0.05651,91486.0,91485.0,0.00016391]
[1765137651536,0.05651,91486.0,91485.0,0.00516391]
[1765137652641,0.05651,91486.0,91485.0,0.00716391]
[1765137655438,0.05651,91486.0,91485.0,0.06460391]
[1765137656545,0.02806,91486.0,91485.0,0.06460391]
[1765137656943,0.05651,91486.0,91485.0,0.06460391]
[1765137659353,0.0276895,91488.0,91477.0,0.03934875]
[1765137659354,0.05651,91478.0,91477.0,0.03934875]
[1765137659645,0.0674437,91453.0,91452.0,0.05910383]
[1765137659842,0.05651,91450.0,91449.0,0.05744]
[1765137660839,0.05651,91450.0,91447.0,0.05910383]
[1765137660840,0.0109341,91449.0,91447.0,0.05910383]
[1765137661039,0.01676,91456.0,91440.0,0.01645402]
[1765137661040,0.05651,91447.0,91446.0,0.02814339]
[1765137661240,0.06760692,91459.0,91458.0,0.05744]
[1765137662848,0.07760692,91459.0,91458.0,0.05744]
[1765137663644,0.06667402,91459.0,91458.0,0.05744]
[1765137664753,0.05724,91449.0,91448.0,0.07286]
[1765137664949,0.07833702,91459.0,91458.0,0.05657]
[1765137665157,0.07833702,91459.0,91458.0,0.02798]
[1765137665346,0.07833702,91459.0,91448.0,0.07286]
[1765137665347,0.05724,91449.0,91448.0,0.07286]
[1765137665552,0.05724,91449.0,91448.0,0.05657]
[1765137665849,0.05724,91449.0,91446.0,0.00027339]
[1765137665850,0.05724,91447.0,91446.0,0.00027339]
[1765137667046,0.06124,91447.0,91446.0,0.00027339]
[1765137668048,0.06124,91447.0,91446.0,0.00227339]
[1765137669453,0.06124,91447.0,91446.0,0.03025339]
[1765137670452,0.06124,91447.0,91446.0,0.05884339]
[1765137671052,0.004,91447.0,91446.0,0.05884339]
[1765137674852,0.03321,91447.0,91446.0,0.05884339]
[1765137675259,0.004,91447.0,91446.0,0.05884339]
[1765137681666,0.004,91447.0,91446.0,0.06977789]
[1765137682767,0.03321,91447.0,91446.0,0.06977789]
[1765137683167,0.004,91447.0,91446.0,0.06977789]
[1765137687073,0.00016402,91459.0,91457.0,0.0109331]
[1765137687272,0.00016402,91459.0,91458.0,0.05759]
[1765137687572,0.02330165,91459.0,91458.0,0.05759]
[1765137688173,0.03230165,91459.0,91458.0,0.05759]
[1765137689578,0.03230165,91459.0,91458.0,0.41759]
[1765137689779,0.010931,91476.0,91475.0,0.05759]
[1765137689985,0.040141,91476.0,91475.0,0.05759]
[1765137690890,0.069381,91476.0,91475.0,0.05759]
[1765137691276,0.093271,91476.0,91475.0,0.05759]
[1765137691475,0.07534,91469.0,91468.0,0.0685218]
[1765137691680,0.05845,91467.0,91466.0,0.00016402]
[1765137691976,0.05845,91467.0,91466.0,0.02848402]
[1765137692173,0.05845,91467.0,91466.0,0.05775402]
[1765137692377,0.02921,91467.0,91466.0,0.05775402]
[1765137693081,0.05845,91472.0,91471.0,0.05759]
[1765137695392,0.05845,91472.0,91471.0,0.02832]
[1765137695590,0.05845,91467.0,91466.0,0.02848402]
[1765137695788,0.069382,91467.0,91466.0,0.02848402]
[1765137697196,0.02921,91467.0,91466.0,0.05775402]
[1765137697493,0.0693811,91475.0,91474.0,0.05759]
[1765137697789,0.05845,91475.0,91474.0,0.05759]
[1765137698790,0.09335892,91490.0,91481.0,0.05759]
[1765137698791,0.05845,91482.0,91481.0,0.05759]
[1765137701003,0.05845,91482.0,91481.0,0.05859]
[1765137701585,0.05845,91490.0,91489.0,0.05759]
[1765137701782,0.08149162,91490.0,91489.0,0.05759]
[1765137702198,0.05845,91490.0,91489.0,0.05759]
[1765137703702,0.05845,91490.0,91489.0,0.05859]
[1765137704089,0.05845,91490.0,91489.0,0.05959]
[1765137705093,0.07565,91490.0,91489.0,0.05959]
[1765137705291,0.07565,91490.0,91489.0,0.0412494]
[1765137705498,0.07565,91490.0,91489.0,0.0688194]
[1765137706692,0.07565,91490.0,91489.0,0.002]
[1765137710798,0.07565,91490.0,91489.0,0.05838]
[1765137711801,0.07565,91490.0,91489.0,0.03081]
[1765137714896,0.07565,91490.0,91489.0,0.002]
[1765137715696,0.07565,91490.0,91489.0,0.05838]
[1765137716109,0.07565,91490.0,91489.0,0.03081]
[1765137717503,0.07565,91490.0,91489.0,0.06003]
[1765137721908,0.02921,91490.0,91489.0,0.06003]
[1765137722303,0.0589,91490.0,91489.0,0.06003]
[1765137723005,0.02921,91490.0,91489.0,0.06003]
[1765137723403,0.0589,91490.0,91489.0,0.06003]
[1765137725612,0.0589,91490.0,91489.0,0.002]
[1765137734318,0.01689,91470.0,91468.0,0.0559]
[1765137734520,0.05548,91469.0,91468.0,0.0559]
[1765137735421,0.05548,91469.0,91468.0,0.0599]
[1765137735818,0.05548,91469.0,91468.0,0.0729]
[1765137736719,0.05548,91469.0,91468.0,0.0689]
[1765137736921,0.05548,91469.0,91468.0,0.0729]
[1765137740508,0.05548,91469.0,91468.0,0.11210775]
[1765137740711,0.0805802,91482.0,91481.0,0.0559]
[1765137742221,0.0664102,91482.0,91481.0,0.0599]
[1765137742525,0.0836502,91482.0,91481.0,0.0599]
[1765137742919,0.0836502,91482.0,91481.0,0.0609]
[1765137743125,0.0836502,91482.0,91481.0,0.005]
[1765137747537,0.0836502,91482.0,91466.0,0.00016402]
[1765137747538,0.05548,91467.0,91466.0,0.00016402]
[1765137747831,0.05548,91467.0,91466.0,0.05606402]
[1765137748830,0.05548,91467.0,91466.0,0.06806402]
[1765137749031,0.05548,91467.0,91466.0,0.07206402]
[1765137755431,0.05548,91467.0,91466.0,0.11127177]
[1765137757029,0.05548,91467.0,91466.0,0.07206402]
[1765137757627,0.05548,91467.0,91466.0,0.05549967]
[1765137758027,0.05548,91467.0,91466.0,0.01616402]
[1765137759128,0.05748,91467.0,91466.0,0.01216402]
[1765137759335,0.06648,91467.0,91466.0,0.00016402]
[1765137759839,0.05548,91449.0,91448.0,0.09523565]
[1765137760331,0.0664141,91449.0,91448.0,0.02811]
[1765137760533,0.05548,91447.0,91446.0,0.02838339]
[1765137760931,0.05548,91447.0,91446.0,0.05617339]
[1765137761533,0.05648,91447.0,91446.0,0.05617339]
[1765137762438,0.05648,91447.0,91446.0,0.05717339]
[1765137765033,0.02841,91447.0,91446.0,0.05717339]
[1765137765240,0.001,91447.0,91446.0,0.07444339]
[1765137767541,0.00016402,91456.0,91455.0,0.0676534]
[1765137768745,0.00516402,91456.0,91455.0,0.4376534]
[1765137768938,0.00516402,91456.0,91455.0,0.0676534]
[1765137770046,0.00016402,91456.0,91455.0,0.0676534]
[1765137770241,0.00216402,91456.0,91455.0,0.0676534]
[1765137772548,0.05873402,91456.0,91455.0,0.02934]
[1765137772743,0.05873402,91456.0,91455.0,0.05672]
[1765137773738,0.0675044,91447.0,91446.0,0.09624683]
[1765137774040,0.0675044,91447.0,91446.0,0.05699339]
[1765137774448,0.0675044,91447.0,91446.0,0.09624683]
[1765137775046,0.0675044,91447.0,91446.0,0.05699339]
[1765137775552,0.0675044,91447.0,91446.0,0.05899339]
[1765137776551,0.0675044,91447.0,91446.0,0.03161339]
[1765137776745,0.0675044,91447.0,91446.0,0.03361339]
[1765137777048,0.0675044,91447.0,91446.0,0.06043339]
[1765137777247,0.0675044,91447.0,91446.0,0.05843339]
[1765137777947,0.040924,91451.0,91446.0,0.01803339]
[1765137778249,0.0679935,91455.0,91454.0,0.05754]
[1765137779452,0.0709935,91455.0,91454.0,0.05754]
[1765137783942,0.0679935,91455.0,91454.0,0.05754]
[1765137784143,0.0709935,91455.0,91454.0,0.05754]
[1765137785062,0.067994,91450.0,91449.0,0.09679344]
[1765137785350,0.067994,91450.0,91446.0,0.00027339]
[1765137785351,0.05706,91447.0,91446.0,0.00027339]
[1765137785557,0.05706,91447.0,91446.0,0.05781339]
[1765137786653,0.05706,91447.0,91446.0,0.05881339]
[1765137787449,0.05706,91447.0,91446.0,0.0981268]
[1765137788849,0.05706,91447.0,91446.0,0.00127339]
[1765137789153,0.05706,91447.0,91446.0,0.05881339]
[1765137792158,0.05706,91447.0,91446.0,0.06974789]
[1765137792349,0.08171732,91456.0,91446.0,0.06974789]
[1765137792350,0.00016402,91456.0,91455.0,0.05666]
[1765137792556,0.01728,91476.0,91455.0,0.05666]
[1765137792557,0.0381511,91475.0,91470.0,0.01676]
[1765137792758,0.01728,91482.0,91470.0,0.01676]
[1765137792759,0.010931,91476.0,91470.0,0.01676]
[1765137793055,0.066501,91476.0,91475.0,0.05666]
[1765137793250,0.083781,91476.0,91475.0,0.05666]
[1765137793756,0.05557,91467.0,91466.0,0.00016402]
[1765137793959,0.05557,91467.0,91466.0,0.05682402]
[1765137795148,0.05557,91467.0,91466.0,0.02928402]
[1765137795354,0.06057,91467.0,91466.0,0.00016402]
[1765137795553,0.06057,91467.0,91466.0,0.05682402]
[1765137795761,0.06157,91467.0,91466.0,0.05682402]
[1765137797448,0.06157,91467.0,91466.0,0.00016402]
[1765137798757,0.06157,91467.0,91450.0,0.0393162]
[1765137798758,0.05557,91451.0,91450.0,0.0393162]
[1765137798951,0.05557,91447.0,91446.0,0.00027339]
[1765137799156,0.05557,91447.0,91446.0,0.05693339]
[1765137800058,0.05557,91447.0,91446.0,0.06093339]
[1765137801673,0.05557,91447.0,91446.0,0.06293339]
[1765137802468,0.05557,91447.0,91446.0,0.05793339]
[1765137804563,0.02722,91447.0,91446.0,0.05793339]
[1765137804970,0.05557,91447.0,91446.0,0.05793339]
[1765137808771,0.0665044,91447.0,91446.0,0.05793339]
[1765137811059,0.0665034,91455.0,91454.0,0.05666]
[1765137811263,0.0665034,91455.0,91446.0,0.01825339]
[1765137811264,0.00016402,91456.0,91455.0,0.05666]
[1765137812570,0.00416402,91456.0,91455.0,0.25666]
[1765137813869,0.00016402,91456.0,91455.0,0.25666]
[1765137814065,0.00216402,91456.0,91455.0,0.25666]
[1765137814571,0.00116402,91456.0,91455.0,0.25766]
[1765137816366,0.05673402,91456.0,91455.0,0.05766]
[1765137816563,0.00116402,91456.0,91455.0,0.05766]
[1765137817570,0.00116402,91456.0,91455.0,0.40766]
[1765137820879,0.00116402,91456.0,91455.0,0.44693075]
[1765137829077,0.00116402,91456.0,91455.0,0.45354075]
[1765137829479,0.05962402,91456.0,91455.0,0.09693075]
[1765137829673,0.05962402,91456.0,91455.0,0.16693075]
[1765137829873,0.05962402,91456.0,91455.0,0.001]
[1765137830283,0.05962402,91456.0,91455.0,0.05791]
[1765137830676,0.05962402,91456.0,91455.0,0.09718075]
[1765137833483,0.00116402,91456.0,91455.0,0.09718075]
[1765137833674,0.00116402,91456.0,91455.0,0.05791]
[1765137834485,0.00116402,91456.0,91455.0,0.45791]
[1765137836582,0.07432,91475.0,91474.0,0.05891]
[1765137837689,0.08232,91475.0,91474.0,0.05891]
[1765137838386,0.08432,91475.0,91474.0,0.05891]
[1765137839087,0.08332,91475.0,91474.0,0.05891]
[1765137839290,0.07932,91475.0,91474.0,0.05891]
[1765137839886,0.05641,91466.0,91465.0,0.05938402]
[1765137840090,0.05641,91466.0,91465.0,0.00016402]
[1765137840091,0.0673421,91466.0,91465.0,0.00016402]
[1765137840384,0.0109337,91453.0,91452.0,2.61e-06]
[1765137840586,0.05641,91447.0,91446.0,0.00027339]
[1765137841285,0.07950562,91447.0,91446.0,0.00027339]
[1765137841688,0.47950562,91447.0,91446.0,0.00027339]
[1765137841887,0.47950562,91447.0,91446.0,1e-08]
[1765137842085,0.0673454,91438.0,91437.0,0.00016402]
[1765137842392,0.05641,91435.0,91434.0,0.05024392]
[1765137842598,0.07950562,91435.0,91434.0,0.05024392]
[1765137843492,0.07950562,91435.0,91434.0,0.05824392]
[1765137844593,0.07950562,91435.0,91434.0,0.11746392]
[1765137844789,0.07950562,91435.0,91434.0,0.13409392]
[1765137844985,0.05641,91435.0,91434.0,0.13809392]
[1765137845295,0.05641,91442.0,91441.0,0.05922]
[1765137845691,0.0794307,91442.0,91441.0,0.05922]
[1765137845884,0.05641,91442.0,91441.0,0.05922]
[1765137846591,0.05641,91442.0,91441.0,0.06222]
[1765137847379,0.05641,91442.0,91441.0,0.06422]
[1765137851985,0.02783,91442.0,91441.0,0.08063]
[1765137852389,0.0573,91442.0,91441.0,0.08063]
[1765137854282,0.0573,91442.0,91441.0,0.06422]
[1765137857198,0.0573,91442.0,91441.0,0.08063]
[1765137863295,0.0573,91442.0,91441.0,0.06422]
[1765137868202,0.08057846,91442.0,91441.0,0.06422]
[1765137870703,0.0573,91442.0,91441.0,0.06422]
[1765137873310,0.08059923,91442.0,91441.0,0.03473]
[1765137873505,0.08059923,91442.0,91441.0,0.005]
[1765137875314,0.08059923,91442.0,91441.0,0.03255]
[1765137878115,0.08059923,91442.0,91441.0,0.05969]
[1765137880021,0.08059923,91442.0,91441.0,0.03255]
[1765137881116,0.08059923,91442.0,91441.0,0.05969]
[1765137883219,0.08059923,91442.0,91441.0,0.005]
[1765137892219,0.07132,91435.0,91434.0,0.05024392]
[1765137892423,0.10555503,91435.0,91434.0,0.05024392]
[1765137893317,0.10555503,91435.0,91434.0,0.06224392]
[1765137893719,0.10555503,91435.0,91434.0,0.05871809]
[1765137893914,0.10555503,91435.0,91425.0,0.00016402]
[1765137893915,0.0693869,91426.0,91425.0,0.00016402]
[1765137894118,0.09268613,91426.0,91425.0,0.05777402]
[1765137894318,0.09268613,91426.0,91425.0,0.07460402]
[1765137895119,0.0927989,91426.0,91425.0,0.05777402]
[1765137896027,0.0967989,91426.0,91425.0,0.05777402]
[1765137896427,0.1077989,91426.0,91425.0,0.05777402]
[1765137896830,0.1067989,91426.0,91425.0,0.05777402]
[1765137897322,0.1067989,91426.0,91425.0,0.02792402]
[1765137897920,0.1067989,91426.0,91425.0,0.05600402]
[1765137898626,0.1067989,91426.0,91425.0,0.00016402]
[1765137898827,0.1067989,91426.0,91425.0,0.05759402]
[1765137901124,0.1067989,91426.0,91425.0,0.00016402]
[1765137905737,0.1067989,91426.0,91425.0,0.05759402]
[1765137905936,0.1067989,91426.0,91425.0,0.00016402]
[1765137906242,0.1067989,91426.0,91425.0,0.02951402]
[1765137906739,0.1067989,91426.0,91425.0,0.00016402]
[1765137917252,0.1067989,91426.0,91425.0,0.05809402]
[1765137918141,0.095862,91426.0,91425.0,0.05809402]
[1765137919050,0.095862,91426.0,91425.0,0.00016402]
[1765137919447,0.084862,91426.0,91425.0,0.00016402]
[1765137919654,0.098862,91426.0,91425.0,0.02884402]
[1765137920249,0.098862,91426.0,91425.0,0.05809402]
[1765137920949,0.095862,91426.0,91425.0,0.05809402]
[1765137921149,0.099862,91426.0,91425.0,0.05809402]
[1765137921349,0.085862,91426.0,91425.0,0.05809402]
[1765137921648,0.103862,91426.0,91425.0,0.05809402]
[1765137922354,0.085862,91426.0,91425.0,0.05809402]
[1765137922659,0.102862,91426.0,91425.0,0.05809402]
[1765137923047,0.101862,91426.0,91425.0,0.05809402]
[1765137923449,0.100862,91426.0,91425.0,0.05809402]
[1765137925358,0.100862,91426.0,91425.0,0.07505402]
[1765137926551,0.083862,91426.0,91425.0,0.07505402]
[1765137926859,0.097862,91426.0,91425.0,0.07505402]
[1765137927252,0.095862,91426.0,91425.0,0.07505402]
[1765137927550,0.098862,91426.0,91425.0,0.07505402]
[1765137928063,0.084862,91426.0,91425.0,0.07505402]
[1765137928249,0.098862,91426.0,91425.0,0.07505402]
[1765137928757,0.099862,91426.0,91425.0,0.05809402]
[1765137928963,0.099862,91426.0,91425.0,0.00016402]
[1765137929256,0.084862,91426.0,91425.0,0.00016402]
[1765137929453,0.096862,91426.0,91425.0,0.00016402]
[1765137929662,0.099862,91426.0,91425.0,0.00016402]
[1765137930056,0.09964297,91426.0,91425.0,0.00016402]
[1765137931050,0.066408,91417.0,91416.0,0.03852]
[1765137931362,0.08957307,91417.0,91416.0,0.03852]
[1765137931558,0.0664092,91407.0,91406.0,0.00027351]
[1765137931757,0.08960217,91407.0,91406.0,0.00027351]
[1765137933054,0.10060217,91407.0,91406.0,0.00027351]
[1765137933760,0.10160217,91407.0,91406.0,0.00027351]
[1765137934267,0.10160217,91407.0,91406.0,0.05820351]
[1765137943563,0.10160217,91407.0,91406.0,0.00027351]
[1765137944662,0.0653601,91399.0,91398.0,0.02746]
[1765137944850,0.08852532,91399.0,91398.0,0.02746]
[1765137945056,0.05442,91398.0,91397.0,0.00016402]
[1765137945256,0.0775002,91398.0,91397.0,0.00016402]
[1765137947669,0.0845002,91398.0,91397.0,0.00016402]
[1765137962901,0.12706893,91398.0,91397.0,0.00016402]
[1765137963595,0.12706893,91398.0,91397.0,0.02720402]
[1765137963799,0.12706893,91398.0,91397.0,0.00016402]
[1765137964402,0.63506893,91398.0,91397.0,0.00016402]
[1765137965702,0.63506893,91398.0,91397.0,0.02720402]
[1765137967000,0.12706893,91398.0,91397.0,0.05482402]
[1765137967195,0.5925002,91398.0,91397.0,0.05482402]
[1765137970301,0.0845002,91398.0,91397.0,0.05482402]
[1765137980214,0.14339107,91398.0,91397.0,0.05482402]
[1765137980708,0.0845002,91398.0,91397.0,0.05482402]
[1765137981713,0.14339107,91398.0,91397.0,0.05482402]
[1765137982812,0.12031087,91398.0,91397.0,0.05482402]
[1765137984612,0.07864096,91413.0,91412.0,0.07079]
[1765137984817,0.00016402,91416.0,91415.0,0.05776]
[1765137985203,0.05446061,91425.0,91424.0,0.05776]
[1765137985204,0.05607,91425.0,91424.0,0.05776]
[1765137985408,0.02743,91425.0,91424.0,0.05776]
[1765137986808,0.02943,91425.0,91424.0,0.05776]
[1765137987216,0.002,91425.0,91424.0,0.05776]
[1765137987619,0.013,91425.0,91424.0,0.05776]
[1765137988919,0.05623412,91434.0,91433.0,0.05776]
[1765137989127,0.05623412,91434.0,91433.0,0.068696]
[1765137990527,0.06323412,91434.0,91433.0,0.068696]
[1765137990717,0.03459412,91434.0,91433.0,0.068696]
[1765137991321,0.06423412,91434.0,91433.0,0.068696]
[1765137992423,0.05723412,91434.0,91433.0,0.068696]
[1765137992719,0.05923412,91434.0,91433.0,0.068696]
[1765137993727,0.05823412,91434.0,91433.0,0.068696]
[1765137995224,0.05723412,91434.0,91433.0,0.069696]
[1765137995628,0.05623412,91434.0,91433.0,0.069696]
[1765137995821,0.05723412,91434.0,91433.0,0.05776]
[1765137996925,0.05723412,91434.0,91433.0,0.05876]
[1765137997136,0.05723412,91434.0,91433.0,0.069696]
[1765137997326,0.05723412,91434.0,91433.0,0.05876]
[1765137998027,0.05823412,91434.0,91433.0,0.05876]
[1765137998428,0.05823412,91434.0,91433.0,0.05976]
[1765138000032,0.05823412,91434.0,91433.0,0.05776]
[1765138000227,0.05623412,91434.0,91433.0,0.05976]
[1765138000427,0.05823412,91434.0,91433.0,0.05976]
[1765138001623,0.05823412,91434.0,91433.0,0.05776]
[1765138001941,0.05923412,91434.0,91433.0,0.05776]
[1765138002335,0.05923412,91434.0,91433.0,0.05876]
[1765138003241,0.00016412,91434.0,91433.0,0.05876]
[1765138003435,0.00216412,91434.0,91433.0,0.05876]
[1765138005740,0.00027339,91446.0,91445.0,0.0677346]
[1765138007343,0.00127339,91446.0,91445.0,0.0677346]
[1765138007837,0.00127339,91446.0,91445.0,0.0717346]
[1765138008242,0.00127339,91446.0,91445.0,0.0677346]
[1765138008437,0.00127339,91446.0,91445.0,0.0717346]
[1765138009647,0.05596339,91446.0,91445.0,0.0717346]
[1765138009843,0.02766339,91446.0,91445.0,0.0717346]
[1765138010044,0.00027339,91446.0,91445.0,0.0717346]
[1765138010941,0.00027339,91446.0,91445.0,0.0677346]
[1765138011141,0.00027339,91446.0,91445.0,0.0717346]
[1765138011545,0.02766339,91446.0,91445.0,0.0717346]
[1765138012143,0.02766339,91446.0,91445.0,0.0608]
[1765138012345,0.00027339,91446.0,91445.0,0.0608]
[1765138012939,0.05496339,91446.0,91445.0,0.0608]
[1765138013749,0.05596339,91446.0,91445.0,0.0608]
[1765138014148,0.05596339,91446.0,91445.0,0.0588]
[1765138014649,0.05596339,91446.0,91445.0,0.0568]
[1765138014849,0.05596339,91446.0,91445.0,0.0578]
[1765138015434,0.05696339,91446.0,91445.0,0.0578]
[1765138016150,0.05496339,91446.0,91445.0,0.0578]
[1765138016342,0.05696339,91446.0,91445.0,0.0578]
[1765138017437,0.05696339,91446.0,91445.0,0.0568]
[1765138018652,0.05696339,91446.0,91445.0,0.0578]
[1765138025354,0.02966339,91446.0,91445.0,0.0578]
[1765138025559,0.05809339,91446.0,91445.0,0.0578]
[1765138039278,0.05809339,91446.0,91445.0,0.0568]
[1765138039476,0.05609339,91446.0,91445.0,0.0568]
[1765138039679,0.05809339,91446.0,91445.0,0.0568]
[1765138040578,0.05909339,91446.0,91445.0,0.0568]
[1765138041079,0.05809339,91446.0,91445.0,0.0568]
[1765138042672,0.05709339,91446.0,91445.0,0.0568]
[1765138042982,0.05809339,91446.0,91445.0,0.09619459]
[1765138043481,0.05609339,91446.0,91445.0,0.09619459]
[1765138043779,0.05709339,91446.0,91445.0,0.09719459]
[1765138043979,0.05709339,91446.0,91445.0,0.0578]
[1765138044781,0.05709339,91446.0,91445.0,0.09719459]
[1765138045081,0.02866339,91446.0,91445.0,0.09719459]
[1765138045681,0.05745339,91446.0,91445.0,0.09719459]
[1765138047175,0.06838789,91446.0,91445.0,0.09719459]
[1765138047378,0.06838789,91446.0,91445.0,0.0578]
[1765138047885,0.05745339,91446.0,91445.0,0.0578]
[1765138048786,0.05645339,91446.0,91445.0,0.0578]
[1765138048981,0.05745339,91446.0,91445.0,0.0578]